bitfinex-derivatives/quotes_SOLF0:USTF0_20250623
["timestamp","ask_amount","ask_price","bid_price","bid_amount"]
[1750720811561,6.32429834,144.56,144.47,57.66759834]
[1750720811766,44.5,144.57,144.49,6.32429834]
[1750720812066,44.5,144.57,144.53,6.9134]
[1750720812266,44.5,144.57,144.49,6.32429834]
[1750720812655,6.32429834,144.54,144.47,51.3433]
[1750720812861,2.6860746,144.56,144.47,51.3433]
[1750720812862,9.01087434,144.55,144.47,51.3433]
[1750720813068,6.32429834,144.53,144.47,6.8433]
[1750720813264,6.32429834,144.51,144.47,4.48]
[1750720813762,6.9153,144.5,144.47,4.48]
[1750720813968,6.32429834,144.51,144.46,17.47]
[1750720814172,6.9167,144.47,144.46,17.47]
[1750720814371,13.24099834,144.47,144.46,17.47]
[1750720814876,13.24099834,144.47,144.39,4.7333]
[1750720814877,6.9191,144.42,144.39,4.7333]
[1750720815259,6.92,144.4,144.37,124.58783899]
[1750720815465,6.32429834,144.4,144.37,24.93]
[1750720816063,6.32429834,144.38,144.37,24.93]
[1750720816260,13.24529834,144.38,144.37,24.93]
[1750720817564,6.32429834,144.39,144.37,24.93]
[1750720817759,44.5,144.41,144.37,24.93]
[1750720817960,44.5,144.41,144.38,6.9209]
[1750720818165,44.5,144.41,144.37,24.93]
[1750720818668,43.22,144.44,144.37,24.93]
[1750720819271,43.22,144.44,144.4,6.9199]
[1750720819468,43.22,144.44,144.38,6.32429834]
[1750720819666,43.22,144.44,144.38,8.66239834]
[1750720819977,49.54429834,144.47,144.4,6.32429834]
[1750720820171,43.22,144.47,144.4,6.32429834]
[1750720820475,50.1368,144.47,144.4,6.32429834]
[1750720821169,6.9172,144.46,144.4,6.32429834]
[1750720821365,43.22,144.47,144.4,6.32429834]
[1750720821771,50.137,144.47,144.43,6.9184]
[1750720821973,43.22,144.47,144.4,6.32429834]
[1750720822174,604.06429834,144.49,144.4,14.91623753]
[1750720822175,6.32429834,144.49,144.4,14.91623753]
[1750720822379,6.9166,144.48,144.4,18.37186454]
[1750720822880,6.917,144.47,144.43,6.9183]
[1750720823678,6.9175,144.46,144.42,6.919]
[1750720823879,9.77992535,144.49,144.4,8.59193919]
[1750720824280,6.9171,144.46,144.4,8.59193919]
[1750720824681,9.77992535,144.49,144.4,8.59193919]
[1750720824877,6.917,144.47,144.43,6.9183]
[1750720825078,9.77992535,144.49,144.4,8.59193919]
[1750720825476,9.77992535,144.49,144.43,6.9182]
[1750720825683,9.77992535,144.46,144.38,54.15003919]
[1750720825885,52.99992535,144.46,144.38,54.15003919]
[1750720826479,6.9178,144.45,144.41,6.9195]
[1750720827387,52.99992535,144.46,144.38,45.5581]
[1750720827573,52.99992535,144.46,144.38,54.15003919]
[1750720827777,52.99992535,144.46,144.39,17.31]
[1750720828084,6.9181,144.45,144.41,6.9192]
[1750720828486,6.9181,144.45,144.39,17.31]
[1750720828883,6.9184,144.44,144.39,17.31]
[1750720829073,52.99992535,144.46,144.39,17.31]
[1750720829279,52.99992535,144.46,144.41,6.9193]
[1750720829485,6.9178,144.45,144.41,6.9193]
[1750720829880,52.99992535,144.46,144.41,6.9195]
[1750720830183,59.91742535,144.46,144.41,28.4595]
[1750720830387,52.99992535,144.46,144.41,28.4595]
[1750720830784,6.918,144.45,144.41,21.54]
[1750720831179,6.905,144.45,144.41,21.54]
[1750720831490,52.99992535,144.46,144.41,21.54]
[1750720831491,9.77992535,144.42,144.41,21.54]
[1750720831687,52.99992535,144.42,144.41,21.54]
[1750720831888,59.91902535,144.42,144.41,21.54]
[1750720832294,50.1391,144.42,144.41,21.54]
[1750720832683,66.82402535,144.42,144.41,21.54]
[1750720832888,50.1391,144.42,144.41,21.54]
[1750720833088,43.22,144.42,144.41,21.54]
[1750720833580,50.1377,144.45,144.41,21.54]
[1750720833785,43.22,144.45,144.41,21.54]
[1750720834291,6.9181,144.44,144.41,21.54]
[1750720834689,43.22,144.45,144.41,21.54]
[1750720834884,50.1378,144.45,144.41,56.7893]
[1750720835083,43.22,144.45,144.41,49.87]
[1750720835994,43.22,144.45,144.42,6.919]
[1750720836788,43.22,144.45,144.41,56.7893]
[1750720836989,43.22,144.45,144.41,49.87]
[1750720837298,43.22,144.45,144.41,56.7894]
[1750720837494,43.22,144.45,144.41,49.87]
[1750720838198,9.77992535,144.42,144.41,49.87]
[1750720839504,16.69902535,144.42,144.41,49.87]
[1750720840303,19.37640533,144.42,144.41,12.4803]
[1750720840591,6.9195,144.41,144.4,26.88]
[1750720840792,45.89737998,144.41,144.39,17.31]
[1750720840982,9.79444914,144.41,144.39,17.31]
[1750720841185,43.22,144.42,144.39,17.31]
[1750720841581,6.9198,144.41,144.39,17.31]
[1750720841786,43.22,144.42,144.39,17.31]
[1750720842390,49.54659004,144.42,144.39,17.31]
[1750720842895,6.9198,144.41,144.39,17.31]
[1750720843396,56.46579004,144.42,144.39,17.31]
[1750720843798,6.32659004,144.4,144.39,17.31]
[1750720844093,13.24659004,144.4,144.39,17.31]
[1750720844492,43.22,144.42,144.39,17.31]
[1750720844694,146.34,144.48,144.39,17.31]
[1750720844695,43.22,144.45,144.39,17.31]
[1750720844998,43.22,144.45,144.42,6.9188]
[1750720846790,50.1377,144.45,144.41,6.9194]
[1750720847194,43.22,144.45,144.4,4.6778]
[1750720847493,50.1379,144.45,144.41,6.9193]
[1750720847797,43.22,144.45,144.41,6.9193]
[1750720848596,43.22,144.45,144.4,4.6778]
[1750720849701,6.32575879,144.41,144.39,17.31]
[1750720849899,41.82,144.4,144.39,17.31]
[1750720850397,48.74,144.4,144.39,17.31]
[1750720854792,48.14618926,144.4,144.37,24.93]
[1750720855997,55.06648926,144.4,144.37,24.93]
[1750720856600,55.06648926,144.4,144.33,7.0653]
[1750720856797,48.14618926,144.4,144.36,6.9217]
[1750720857410,41.82,144.4,144.37,6.9211]
[1750720857600,41.82,144.4,144.33,13.39148926]
[1750720858007,41.82,144.4,144.36,6.9216]
[1750720858606,48.7402,144.4,144.35,6.9223]
[1750720858912,48.14618926,144.4,144.35,6.9223]
[1750720859100,55.06638926,144.4,144.35,6.9223]
[1750720859606,55.06638926,144.4,144.36,6.9218]
[1750720859995,48.14618926,144.4,144.36,6.9218]
[1750720860201,41.82,144.4,144.37,6.9212]
[1750720860503,41.82,144.4,144.33,13.39148926]
[1750720860703,41.82,144.4,144.36,6.9217]
[1750720861208,48.74,144.4,144.36,6.9217]
[1750720862107,48.74,144.4,144.35,6.9222]
[1750720862711,48.74,144.4,144.36,6.9219]
[1750720862907,48.74,144.4,144.33,13.39148926]
[1750720863315,48.74,144.4,144.36,6.9219]
[1750720863512,6.32618926,144.39,144.33,7.0653]
[1750720864013,6.32618926,144.37,144.33,4.6895]
[1750720864414,41.84,144.36,144.3,8.59139946]
[1750720864711,41.84,144.36,144.29,15.61949946]
[1750720865113,48.7622,144.36,144.31,6.9243]
[1750720865318,41.84,144.36,144.31,6.9243]
[1750720865511,6.32618926,144.35,144.29,7.0281]
[1750720865705,6.9229,144.34,144.3,6.9245]
[1750720866317,13.24878926,144.35,144.3,6.9245]
[1750720866817,13.24878926,144.35,144.31,6.9242]
[1750720867020,6.32618926,144.35,144.31,6.9242]
[1750720867217,48.17123003,144.39,144.35,6.9221]
[1750720867816,48.17123003,144.39,144.3,6.33123003]
[1750720868115,6.921,144.38,144.3,6.33123003]
[1750720868315,48.17123003,144.39,144.3,6.33123003]
[1750720868316,48.17123003,144.39,144.34,6.9226]
[1750720868718,55.09193003,144.39,144.3,14.92262949]
[1750720869213,48.17123003,144.39,144.3,14.92262949]
[1750720869406,41.84,144.39,144.32,6.33123003]
[1750720869806,41.84,144.39,144.38,6.921]
[1750720870003,41.84,144.39,144.32,14.92262949]
[1750720870517,41.84,144.39,144.37,6.9213]
[1750720871516,41.84,144.39,144.38,6.921]
[1750720872313,604.31123003,144.41,144.38,6.921]
[1750720872621,41.84,144.46,144.38,6.33123003]
[1750720872822,41.84,144.46,144.39,6.8619]
[1750720873013,48.7572,144.46,144.43,6.9183]
[1750720873509,41.84,144.46,144.44,6.9178]
[1750720873812,20.72,144.55,144.43,6.31817804]
[1750720873813,41.84,144.5,144.43,6.31817804]
[1750720874015,48.15817804,144.51,144.43,6.31817804]
[1750720874220,6.9157,144.5,144.46,6.9168]
[1750720874521,48.15817804,144.51,144.43,6.31817804]
[1750720874908,6.9154,144.5,144.43,6.31817804]
[1750720875716,6.9154,144.5,144.47,6.9166]
[1750720876414,55.07317804,144.51,144.48,6.916]
[1750720876620,55.07317804,144.51,144.43,6.31817804]
[1750720876815,41.84,144.51,144.43,6.31817804]
[1750720877018,41.84,144.51,144.43,48.13817804]
[1750720877523,41.84,144.51,144.48,6.9162]
[1750720877718,41.84,144.51,144.43,48.13817804]
[1750720878722,41.84,144.51,144.49,6.9153]
[1750720878923,6.31817804,144.54,144.45,6.31817804]
[1750720879124,47.23817804,144.56,144.47,6.31817804]
[1750720879318,47.23817804,144.56,144.54,6.9133]
[1750720879618,40.92,144.56,144.49,6.31817804]
[1750720879818,40.92,144.56,144.55,6.9128]
[1750720880409,47.23817804,144.56,144.46,6.8258]
[1750720880614,6.31817804,144.54,144.46,6.8258]
[1750720881012,6.31817804,144.54,144.5,6.9149]
[1750720881414,6.31817804,144.54,144.46,6.8258]
[1750720882110,47.23817804,144.56,144.52,6.9142]
[1750720882523,47.23817804,144.56,144.47,6.31817804]
[1750720882722,54.15087804,144.56,144.48,40.92]
[1750720883020,47.23817804,144.56,144.48,40.92]
[1750720883521,54.15057804,144.56,144.53,6.9136]
[1750720883818,54.15057804,144.56,144.49,6.31817804]
[1750720883819,40.92,144.56,144.49,6.31817804]
[1750720884020,6.31817804,144.54,144.46,6.8258]
[1750720884419,6.31817804,144.52,144.48,6.9159]
[1750720885124,6.31817804,144.52,144.47,14.49]
[1750720885324,6.31817804,144.53,144.47,14.49]
[1750720885713,13.23207804,144.53,144.49,6.9154]
[1750720886518,6.31817804,144.53,144.47,14.49]
[1750720887423,6.31817804,144.53,144.51,6.9147]
[1750720887616,6.31817804,144.53,144.47,14.49]
[1750720888224,6.31817804,144.55,144.52,6.9143]
[1750720888614,40.92,144.56,144.53,6.9135]
[1750720888823,40.92,144.56,144.48,40.9]
[1750720889121,40.92,144.56,144.53,6.9135]
[1750720889517,40.92,144.56,144.48,40.9]
[1750720889919,40.92,144.56,144.54,6.913]
[1750720890120,40.92,144.56,144.48,40.9]
[1750720890319,40.92,144.56,144.53,6.9136]
[1750720890520,40.92,144.56,144.48,40.9]
[1750720890920,40.92,144.56,144.53,6.9135]
[1750720891125,47.8325,144.56,144.53,6.9135]
[1750720891324,40.92,144.56,144.53,6.9135]
[1750720891529,40.92,144.56,144.48,40.9]
[1750720891530,6.31817804,144.55,144.48,40.9]
[1750720891723,6.31817804,144.55,144.47,14.49]
[1750720891923,6.31817804,144.55,144.49,18.44]
[1750720892118,6.31817804,144.55,144.51,6.9145]
[1750720892323,13.23137804,144.55,144.51,6.9145]
[1750720892535,6.31817804,144.55,144.49,18.44]
[1750720893028,6.31817804,144.55,144.53,6.9138]
[1750720894034,40.92,144.56,144.53,6.9138]
[1750720895026,40.92,144.56,144.54,6.9129]
[1750720895226,40.92,144.56,144.49,24.75817804]
[1750720895437,6.31817804,144.61,144.53,6.31817804]
[1750720895632,40.9,144.62,144.61,6.91]
[1750720895824,40.9,144.62,144.55,6.31817804]
[1750720896529,40.9,144.62,144.6,6.9104]
[1750720896733,40.9,144.62,144.55,6.31817804]
[1750720897233,40.9,144.62,144.61,6.91]
[1750720897735,40.9,144.62,144.6,6.9103]
[1750720899226,40.9,144.62,144.61,6.91]
[1750720901528,47.19817804,144.65,144.54,47.6745]
[1750720901730,47.19817804,144.65,144.57,6.31817804]
[1750720901927,6.9088,144.64,144.6,6.9101]
[1750720902231,6.31817804,144.63,144.54,13.09267804]
[1750720902429,6.9103,144.61,144.54,13.09267804]
[1750720902621,47.7903,144.61,144.54,6.7745]
[1750720902821,40.88,144.61,144.54,6.7745]
[1750720903635,40.88,144.61,144.58,6.9112]
[1750720904136,40.88,144.61,144.59,6.9106]
[1750720904325,40.88,144.61,144.54,6.7745]
[1750720904730,40.88,144.61,144.55,6.31817804]
[1750720905132,13.22727804,144.63,144.55,6.31817804]
[1750720905736,13.22727804,144.63,144.6,6.9104]
[1750720905937,6.31817804,144.63,144.55,6.31817804]
[1750720906133,54.10677804,144.64,144.55,6.31817804]
[1750720906333,54.10677804,144.64,144.61,6.9097]
[1750720907837,47.19817804,144.64,144.61,6.9097]
[1750720908040,40.88,144.64,144.62,6.9094]
[1750720908737,40.88,144.64,144.57,47.19817804]
[1750720909141,40.88,144.64,144.62,6.9092]
[1750720909837,40.88,144.64,144.63,6.909]
[1750720910037,47.11817804,144.67,144.57,47.19817804]
[1750720910435,54.02527804,144.67,144.64,6.9082]
[1750720910639,47.11817804,144.67,144.59,6.31817804]
[1750720910826,47.11817804,144.67,144.57,40.88]
[1750720911032,47.11817804,144.67,144.57,47.19817804]
[1750720911234,6.9081,144.65,144.62,6.9092]
[1750720911436,47.11817804,144.67,144.57,47.19817804]
[1750720912131,6.9078,144.66,144.63,6.9087]
[1750720912331,47.11817804,144.67,144.57,40.88]
[1750720912537,6.9076,144.66,144.62,6.909]
[1750720913032,6.9086,144.64,144.57,47.19817804]
[1750720913339,6.31817804,144.65,144.55,23.60817804]
[1750720913538,6.9087,144.64,144.55,64.40817804]
[1750720914239,6.9087,144.64,144.55,23.60817804]
[1750720914441,6.9087,144.64,144.56,40.8]
[1750720914743,6.9087,144.64,144.61,6.9097]
[1750720915049,6.31817804,144.65,144.56,40.8]
[1750720916244,6.31817804,144.65,144.57,6.31817804]
[1750720916437,6.31817804,144.65,144.63,6.9088]
[1750720917042,2.69202791,144.66,144.63,6.9088]
[1750720917237,47.11817804,144.67,144.63,6.9088]
[1750720917737,54.02547804,144.67,144.64,6.9085]
[1750720917937,54.02547804,144.67,144.59,6.31817804]
[1750720917938,40.8,144.67,144.59,6.31817804]
[1750720918238,40.8,144.67,144.6,2.3252]
[1750720918443,40.8,144.67,144.65,6.9078]
[1750720918949,40.8,144.67,144.6,43.1252]
[1750720918950,40.8,144.7,144.61,6.31817804]
[1750720919248,40.8,144.7,144.62,2.4023]
[1750720919447,52.60161038,144.7,144.66,6.9071]
[1750720919644,40.8,144.7,144.63,6.31817804]
[1750720920045,47.11817804,144.73,144.64,40.8]
[1750720920439,54.02247804,144.73,144.65,6.31817804]
[1750720920645,54.02247804,144.73,144.62,2.4023]
[1750720920646,6.30110316,144.71,144.62,2.4023]
[1750720920841,5.41694035,144.72,144.62,2.4023]
[1750720921042,5.41694035,144.72,144.69,6.9058]
[1750720921043,6.30110316,144.72,144.69,6.9058]
[1750720921242,47.7044,144.73,144.69,6.9058]
[1750720921437,47.7044,144.73,144.64,47.10110316]
[1750720921438,40.8,144.73,144.64,47.10110316]
[1750720921744,2.69974681,144.75,144.64,40.8]
[1750720921954,637.88,144.76,144.68,6.2960087]
[1750720922342,637.88,144.76,144.69,4.7415]
[1750720922749,40.8,144.76,144.69,7.0586]
[1750720923250,40.8,144.76,144.7,6.2960087]
[1750720923442,40.78,144.79,144.7,6.2960087]
[1750720923650,40.78,144.79,144.72,6.2960087]
[1750720923945,6.2960087,144.82,144.74,6.2960087]
[1750720923946,7.61882996,144.81,144.74,6.2960087]
[1750720924151,6.2960087,144.84,144.76,6.2960087]
[1750720924353,6.2960087,144.83,144.74,6.2960087]
[1750720924859,6.2960087,144.83,144.72,6.2960087]
[1750720925149,6.2960087,144.79,144.7,47.0760087]
[1750720925648,13.1977087,144.79,144.75,6.9031]
[1750720925856,40.78,144.8,144.74,6.2960087]
[1750720926439,6.9001,144.82,144.74,47.0760087]
[1750720926742,40.78,144.83,144.74,47.0760087]
[1750720926948,40.78,144.83,144.76,6.2960087]
[1750720927151,40.78,144.83,144.77,4.7504]
[1750720927652,47.0760087,144.86,144.77,4.7504]
[1750720928355,47.0760087,144.86,144.83,6.8992]
[1750720928651,596.94,144.9,144.8,6.2960087]
[1750720928857,596.94,144.9,144.82,6.2960087]
[1750720929152,6.2960087,144.89,144.8,47.0560087]
[1750720930151,596.94,144.9,144.82,6.2960087]
[1750720930350,40.76,144.91,144.82,6.2960087]
[1750720930552,40.76,144.91,144.84,6.2960087]
[1750720930756,40.76,144.91,144.85,2.2397]
[1750720931348,47.0560087,144.91,144.85,2.2397]
[1750720931557,47.0560087,144.91,144.81,47.0360087]
[1750720931558,40.76,144.91,144.81,47.0360087]
[1750720931860,6.2960087,144.9,144.81,47.0360087]
[1750720932956,6.2960087,144.9,144.85,6.898]
[1750720935162,6.2960087,144.9,144.8,47.0360087]
[1750720935163,6.2960087,144.88,144.8,40.74]
[1750720935455,40.76,144.91,144.8,47.0360087]
[1750720935647,6.2960087,144.9,144.82,6.2960087]
[1750720935847,40.76,144.91,144.82,6.2960087]
[1750720936054,40.76,144.91,144.89,6.8964]
[1750720936255,40.76,144.91,144.84,47.0360087]
[1750720936551,47.0360087,144.94,144.84,47.0360087]
[1750720936752,6.2960087,144.93,144.85,2.3777]
[1750720937160,6.2960087,144.93,144.89,6.8962]
[1750720937463,47.0360087,144.94,144.86,2.2048]
[1750720937757,6.2960087,144.92,144.86,2.2048]
[1750720937949,6.2960087,144.92,144.8,62.0]
[1750720937950,6.2960087,144.9,144.8,6.2960087]
[1750720938261,47.0360087,144.9,144.85,6.8981]
[1750720938452,47.0360087,144.9,144.81,45.3663]
[1750720938956,6.8969,144.89,144.81,45.3663]
[1750720939260,6.2960087,144.88,144.81,45.3663]
[1750720939646,40.74,144.9,144.81,45.3663]
[1750720939647,6.2960087,144.87,144.81,4.6263]
[1750720939853,6.2960087,144.88,144.81,4.6263]
[1750720940360,13.1935087,144.88,144.83,6.8992]
[1750720940557,6.2960087,144.88,144.83,6.8992]
[1750720940860,6.2960087,144.88,144.81,4.6263]
[1750720941663,40.74,144.9,144.81,4.6263]
[1750720942156,40.74,144.9,144.82,6.28371225]
[1750720944160,6.28371225,144.89,144.84,6.8988]
[1750720944361,6.28371225,144.89,144.81,4.6263]
[1750720944757,13.18061225,144.89,144.81,4.6263]
[1750720945165,6.28371225,144.89,144.81,4.6263]
[1750720945362,6.28371225,144.89,144.86,6.8977]
[1750720945563,53.92011225,144.9,144.86,6.8977]
[1750720946165,6.8967,144.89,144.81,4.6263]
[1750720946556,6.8967,144.89,144.85,6.8983]
[1750720946961,53.92001225,144.9,144.81,4.6263]
[1750720947165,47.02371225,144.9,144.85,6.8983]
[1750720947364,47.02371225,144.9,144.81,4.6263]
[1750720947672,6.28371225,144.88,144.81,4.6263]
[1750720947868,6.28371225,144.88,144.81,2.3471]
[1750720948067,6.8979,144.87,144.81,2.3471]
[1750720948366,6.8979,144.87,144.83,6.899]
[1750720948668,6.28371225,144.88,144.81,2.3471]
[1750720949162,13.18101225,144.88,144.81,2.3471]
[1750720949966,6.8976,144.87,144.83,6.8994]
[1750720950370,46.90371225,144.86,144.79,2.1924]
[1750720950565,6.28371225,144.84,144.76,6.28371225]
[1750720950767,46.90371225,144.84,144.76,6.28371225]
[1750720951767,46.90371225,144.84,144.82,6.8999]
[1750720952156,46.90371225,144.84,144.83,6.8995]
[1750720952361,40.62,144.84,144.83,6.8995]
[1750720954066,40.62,144.87,144.8,29.46]
[1750720954260,40.62,144.86,144.8,29.46]
[1750720954464,6.28371225,144.81,144.8,29.46]
[1750720955161,6.9018,144.79,144.73,9.2548]
[1750720955360,40.62,144.78,144.73,2.351]
[1750720955561,46.91391974,144.78,144.73,2.351]
[1750720955762,53.81611974,144.78,144.73,6.9039]
[1750720955973,6.29391974,144.76,144.69,2.3643]
[1750720956572,6.29391974,144.74,144.69,2.3643]
[1750720957475,6.29391974,144.74,144.7,6.9055]
[1750720957675,6.29391974,144.74,144.69,2.3643]
[1750720957873,6.29688339,144.76,144.69,2.3643]
[1750720958073,6.29688339,144.76,144.71,6.9051]
[1750720958368,6.29688339,144.74,144.69,2.3643]
[1750720958572,40.64,144.73,144.68,2.31]
[1750720958774,6.29688339,144.7,144.64,2.2494]
[1750720959369,6.29688339,144.68,144.62,40.64]
[1750720959563,6.29688339,144.68,144.64,17.28]
[1750720959767,6.29688339,144.68,144.64,24.1884]
[1750720960080,6.29688339,144.66,144.64,17.28]
[1750720960269,6.29688339,144.67,144.64,24.1884]
[1750720960471,6.29688339,144.67,144.64,17.28]
[1750720960965,6.29688339,144.67,144.65,6.908]
[1750720961168,6.29688339,144.67,144.64,17.28]
[1750720962577,6.29688339,144.65,144.64,17.28]
[1750720962969,46.95688339,144.65,144.64,17.28]
[1750720964571,40.66,144.65,144.64,17.28]
[1750720964966,40.66,144.65,144.6,32.1849]
[1750720964967,40.66,144.65,144.6,29.86]
[1750720965173,6.29688339,144.63,144.6,29.86]
[1750720965678,6.29688339,144.63,144.61,6.9099]
[1750720965881,6.29688339,144.63,144.6,29.86]
[1750720966080,8.49281272,144.77,144.6,29.86]
[1750720966374,6.29688339,144.68,144.61,2.2927]
[1750720966581,6.29688339,144.68,144.64,6.9082]
[1750720966779,6.29688339,144.68,144.61,2.2927]
[1750720967279,13.20378339,144.68,144.63,6.9087]
[1750720967775,40.66,144.69,144.66,6.9075]
[1750720967979,40.66,144.69,144.61,8.58958339]
[1750720968279,40.66,144.72,144.63,6.29688339]
[1750720969080,40.66,144.72,144.69,6.9058]
[1750720971180,40.66,144.72,144.65,6.29688339]
[1750720971181,40.66,144.72,144.68,6.9064]
[1750720971383,40.66,144.72,144.65,6.29688339]
[1750720971886,47.5649,144.72,144.68,6.9063]
[1750720972981,40.66,144.72,144.69,6.9061]
[1750720973178,40.66,144.72,144.65,6.29688339]
[1750720973987,40.66,144.72,144.69,6.9058]
[1750720974287,40.66,144.72,144.65,6.29688339]
[1750720974886,6.9055,144.71,144.68,6.9063]
[1750720975589,47.5648,144.72,144.69,6.9061]
[1750720975780,47.5648,144.72,144.65,6.29688339]
[1750720975981,40.66,144.72,144.65,6.29688339]
[1750720976183,6.29688339,144.68,144.61,2.2927]
[1750720976382,40.94,144.67,144.61,2.2927]
[1750720976584,6.9083,144.65,144.61,2.2927]
[1750720977193,6.9083,144.65,144.62,32.4694]
[1750720977795,13.20458339,144.66,144.62,32.4694]
[1750720977998,6.29688339,144.66,144.63,6.909]
[1750720978591,47.23688339,144.72,144.62,72.79688339]
[1750720978977,54.14178339,144.72,144.64,6.29688339]
[1750720979383,40.94,144.72,144.64,6.29688339]
[1750720979891,40.94,144.72,144.66,6.29688339]
[1750720980095,40.94,144.72,144.7,6.9054]
[1750720980284,6.29849583,144.71,144.62,72.79849583]
[1750720980484,6.29849583,144.71,144.62,31.85849583]
[1750720980746,6.29849583,144.71,144.64,6.9085]
[1750720980990,6.29849583,144.71,144.62,31.85849583]
[1750720981188,6.29849583,144.69,144.62,32.4693]
[1750720981383,6.29849583,144.67,144.62,25.56]
[1750720981584,13.20149583,144.72,144.62,25.56]
[1750720981585,6.29849583,144.65,144.62,25.56]
[1750720981787,6.909,144.63,144.62,25.56]
[1750720982488,6.909,144.63,144.52,6.29849583]
[1750720982489,6.9119,144.57,144.52,6.29849583]
[1750720982698,47.23849583,144.58,144.5,2.3657]
[1750720982990,40.94,144.57,144.49,4.5623]
[1750720983187,6.31568152,144.55,144.49,4.5623]
[1750720983387,40.94,144.54,144.49,11.4779]
[1750720983987,40.94,144.54,144.5,6.9151]
[1750720984893,40.94,144.54,144.49,4.5623]
[1750720985194,40.94,144.54,144.49,35.7923]
[1750720985592,40.94,144.54,144.51,6.9144]
[1750720985790,40.94,144.54,144.49,35.7923]
[1750720986097,40.94,144.54,144.51,6.9144]
[1750720987090,40.94,144.54,144.49,35.7923]
[1750720987490,40.94,144.54,144.53,6.9138]
[1750720987993,596.82,144.59,144.58,6.9114]
[1750720988296,40.96,144.61,144.54,6.31039303]
[1750720988598,40.96,144.6,144.56,6.912]
[1750720988900,40.96,144.6,144.52,6.31039303]
[1750720989694,40.96,144.6,144.58,6.9114]
[1750720989998,40.96,144.6,144.52,6.31039303]
[1750720989999,40.96,144.6,144.53,2.2743]
[1750720990499,40.96,144.6,144.57,6.9118]
[1750720990895,40.96,144.6,144.53,2.2743]
[1750720991100,40.96,144.6,144.57,6.9117]
[1750720991898,40.96,144.6,144.53,2.2743]
[1750720992102,6.31039303,144.59,144.49,42.10269303]
[1750720992294,6.31039303,144.59,144.51,6.31039303]
[1750720992602,6.9112,144.59,144.51,6.31039303]
[1750720993003,6.9112,144.59,144.54,6.9128]
[1750720993200,47.27126587,144.6,144.51,6.31126587]
[1750720994304,6.9112,144.59,144.55,6.9127]
[1750720994706,47.27126587,144.6,144.51,6.31126587]
[1750720995002,6.31126587,144.58,144.5,43.2543]
[1750720995197,6.31126587,144.58,144.5,2.2743]
[1750720995392,6.9124,144.56,144.52,6.9139]
[1750720995704,47.8924,144.56,144.52,6.9139]
[1750720995905,40.98,144.56,144.5,2.2743]
[1750720996701,40.98,144.56,144.54,6.9128]
[1750720996908,40.98,144.56,144.51,6.31126587]
[1750720998311,40.98,144.56,144.55,6.9128]
[1750720998509,6.30655378,144.65,144.55,6.30655378]
[1750720998804,40.98,144.64,144.56,11.00355378]
[1750720999003,6.9093,144.63,144.59,6.9106]
[1750720999610,6.9095,144.62,144.58,6.9112]
[1750720999805,6.9095,144.62,144.56,11.00355378]
[1750721000697,6.91,144.61,144.58,6.9112]
[1750721001097,6.9096,144.62,144.56,4.697]
[1750721001501,6.30655378,144.63,144.56,4.697]
[1750721001806,6.9096,144.62,144.58,6.9111]
[1750721002311,6.911,144.59,144.54,24.85]
[1750721002508,41.62,144.6,144.54,24.85]
[1750721002812,41.62,144.59,144.56,6.9121]
[1750721003310,41.62,144.59,144.57,16.85]
[1750721003508,48.5309,144.59,144.57,16.85]
[1750721004213,41.62,144.59,144.57,16.85]
[1750721005311,48.531,144.59,144.57,16.85]
[1750721006812,41.62,144.59,144.57,16.85]
[1750721007404,48.5312,144.59,144.57,16.85]